bitfinex-derivatives/quotes_ETHF0:USTF0_20241026
["timestamp","ask_amount","ask_price","bid_price","bid_amount"]
[1729906610714,0.4426,2439.9,2439.5,0.4105]
[1729906614023,0.4426,2439.9,2439.4,3.61831]
[1729906614322,0.4426,2439.9,2439.5,0.4105]
[1729906615122,0.4426,2439.9,2439.5,3.6183]
[1729906615621,0.4426,2439.9,2439.5,3.2078]
[1729906615915,0.8692,2439.9,2439.5,3.2078]
[1729906616121,0.8692,2439.9,2439.5,3.6183]
[1729906616825,0.8692,2439.9,2439.6,0.41049]
[1729906617213,0.8692,2439.9,2439.5,3.2078]
[1729906617521,0.8692,2439.9,2439.5,3.6183]
[1729906619712,0.8692,2439.9,2439.5,3.2078]
[1729906619918,0.4244,2440.0,2439.6,3.30923555]
[1729906620217,0.4244,2440.0,2439.6,0.4272]
[1729906620820,2.88203555,2439.9,2439.4,3.2078]
[1729906621021,2.88203555,2439.7,2439.0,6.08983555]
[1729906621222,0.41052,2439.5,2439.0,3.2078]
[1729906621420,0.4286,2439.4,2439.0,3.2078]
[1729906621623,0.4286,2439.4,2439.1,0.41057]
[1729906622022,0.4286,2439.4,2439.0,6.08983555]
[1729906622225,0.4286,2439.4,2439.0,6.50041555]
[1729906622427,0.4286,2439.4,2439.0,6.08983555]
[1729906622733,0.83914,2439.4,2439.0,3.2078]
[1729906623035,0.4286,2439.4,2439.0,3.2078]
[1729906624431,0.4286,2439.4,2439.1,0.41057]
[1729906624725,0.4286,2439.4,2439.2,0.41055]
[1729906625034,0.4286,2439.4,2439.1,0.41057]
[1729906627636,0.4286,2439.4,2439.1,0.41058]
[1729906628334,0.4096,2439.6,2439.3,0.41054]
[1729906628829,0.4096,2439.6,2439.2,2.88203555]
[1729906629030,0.4096,2439.6,2439.3,0.41054]
[1729906629228,0.4096,2439.6,2439.3,0.4211]
[1729906629431,0.4182,2439.7,2439.3,0.4211]
[1729906629733,0.4289,2439.8,2439.5,0.4105]
[1729906629929,0.4289,2439.8,2439.4,6.52943555]
[1729906629930,0.4289,2439.8,2439.4,6.93994555]
[1729906630227,0.4289,2439.8,2439.4,4.05791]
[1729906632734,0.4289,2439.8,2439.4,3.6474]
[1729906633034,0.41049,2439.7,2439.1,0.41058]
[1729906633231,0.41048,2439.7,2439.1,0.8845]
[1729906633425,0.41049,2439.6,2439.1,1.29507]
[1729906634129,0.4289,2439.8,2439.0,6.08983555]
[1729906634329,0.41055,2439.3,2439.0,3.2078]
[1729906634640,1.30456,2439.2,2439.0,3.2078]
[1729906635239,0.894,2439.2,2439.0,3.2078]
[1729906636432,0.894,2439.2,2438.8,4.16155555]
[1729906636826,0.894,2439.2,2438.8,7.36935555]
[1729906637032,0.894,2439.2,2438.8,4.48732]
[1729906637231,0.894,2439.2,2438.8,4.0767]
[1729906637432,0.894,2439.2,2438.8,4.48732]
[1729906637838,0.894,2439.2,2438.8,4.0767]
[1729906638142,0.894,2439.2,2438.8,4.48733]
[1729906638338,0.894,2439.2,2438.8,4.0767]
[1729906638542,1.30457,2439.2,2438.8,4.0767]
[1729906638938,0.894,2439.2,2438.8,4.0767]
[1729906639431,0.894,2439.2,2438.5,4.27889574]
[1729906639635,4.1018,2439.2,2438.5,3.2078]
[1729906639831,2.88203555,2439.0,2438.3,1.07109574]
[1729906640028,0.41065,2438.7,2438.2,8.41675129]
[1729906640335,0.4459,2438.6,2438.2,7.34565555]
[1729906640529,0.85656,2438.6,2438.2,6.93493555]
[1729906640833,0.8743,2438.6,2438.2,0.8451]
[1729906642042,0.8743,2438.6,2438.2,1.25582]
[1729906642241,0.8743,2438.6,2438.5,3.2078]
[1729906642644,4.5932,2438.9,2438.5,3.61848]
[1729906642837,4.5932,2438.9,2438.5,3.2078]
[1729906642838,1.3854,2438.9,2438.5,3.2078]
[1729906643245,1.3854,2438.9,2438.4,0.41068]
[1729906643540,1.79602,2438.9,2438.4,0.41068]
[1729906643745,1.3854,2438.9,2438.5,0.41068]
[1729906643941,1.3854,2438.9,2438.4,0.41068]
[1729906644341,1.79602,2438.9,2438.4,0.41069]
[1729906644742,1.3854,2438.9,2438.4,0.41069]
[1729906644941,1.3854,2438.9,2438.5,0.8543]
[1729906645539,1.3854,2438.9,2438.5,1.26496]
[1729906645740,3.2078,2439.2,2438.9,0.4106]
[1729906646248,3.2078,2439.2,2439.0,0.8736]
[1729906646646,3.2078,2439.2,2439.0,8.26622555]
[1729906646843,3.2078,2439.2,2439.0,4.9736]
[1729906647039,3.2078,2439.2,2439.0,0.8736]
[1729906648038,3.2078,2439.2,2439.0,4.9736]
[1729906648850,0.41052,2439.5,2439.0,0.8736]
[1729906649245,0.41054,2439.4,2439.0,0.8736]
[1729906649444,0.4537,2439.3,2439.0,0.8736]
[1729906649643,1.3201,2439.3,2439.0,0.8736]
[1729906651059,0.41057,2439.2,2438.6,6.50049555]
[1729906651348,1.3201,2439.3,2438.6,6.50049555]
[1729906651651,0.41062,2438.9,2438.5,0.8557]
[1729906651852,1.3349,2438.8,2438.5,0.8557]
[1729906652952,1.3349,2438.8,2438.5,1.26637]
[1729906653245,1.3349,2438.8,2438.5,0.8557]
[1729906653450,3.2078,2439.1,2438.7,0.41064]
[1729906653756,0.41057,2439.2,2438.6,3.29268555]
[1729906654051,0.4444,2439.1,2438.7,0.41064]
[1729906654243,0.875,2439.3,2438.9,0.41061]
[1729906654446,0.875,2439.3,2439.0,0.8849]
[1729906654648,1.28555,2439.3,2439.0,0.8849]
[1729906654849,0.875,2439.3,2439.0,0.8849]
[1729906655645,0.41059,2439.1,2438.6,6.08983555]
[1729906655849,0.4346,2439.0,2438.6,6.08983555]
[1729906656345,0.415,2438.9,2438.6,6.08983555]
[1729906656750,0.415,2438.9,2438.6,3.2078]
[1729906656950,0.415,2438.9,2438.5,0.4114]
[1729906657151,0.82561,2438.9,2438.5,0.4114]
[1729906657354,0.4173,2438.8,2438.5,0.4114]
[1729906660149,0.4173,2438.8,2438.4,0.4516]
[1729906660348,6.08983555,2438.7,2437.9,4.68966574]
[1729906660550,0.41068,2438.6,2437.9,4.27889574]
[1729906660748,0.4356,2438.5,2438.1,0.41074]
[1729906660949,0.4356,2438.5,2437.9,7.16093129]
[1729906661155,0.4356,2438.5,2438.0,0.41075]
[1729906661352,0.84628,2438.5,2438.0,0.41075]
[1729906661552,0.4356,2438.5,2438.0,0.41075]
[1729906661755,0.4219,2438.4,2438.0,0.41075]
[1729906662255,0.4219,2438.4,2437.9,6.08983555]
[1729906662456,0.4219,2438.4,2438.0,0.41075]
[1729906662848,0.4219,2438.4,2437.9,6.08983555]
[1729906663051,0.4219,2438.4,2438.2,0.41073]
[1729906663249,0.4219,2438.4,2438.1,0.41073]
[1729906663746,0.4219,2438.4,2438.2,0.4439]
[1729906663951,0.4219,2438.4,2438.2,0.85463]
[1729906665159,0.4219,2438.4,2438.2,0.4439]
[1729906666962,0.4356,2438.5,2438.2,0.4439]
[1729906667163,0.4356,2438.5,2438.2,1.28513]
[1729906667355,0.4356,2438.5,2438.2,0.8744]
[1729906667556,0.4356,2438.5,2438.2,1.28512]
[1729906668469,0.4356,2438.5,2438.2,0.8744]
[1729906668663,0.4356,2438.5,2438.2,1.28512]
[1729906669565,3.6485,2438.7,2438.2,1.28512]
[1729906669765,0.422,2438.6,2438.2,1.28512]
[1729906669966,0.4407,2438.7,2438.3,2.88203555]
[1729906670161,0.4407,2438.7,2438.4,0.41068]
[1729906670765,0.4407,2438.7,2438.5,0.41067]
[1729906671069,0.4407,2438.7,2438.3,2.88203555]
[1729906671070,0.4407,2438.7,2438.4,3.61849]
[1729906671968,0.4173,2438.8,2438.4,3.2078]
[1729906672162,0.4173,2438.8,2438.5,3.29270555]
[1729906672362,0.4173,2438.8,2438.5,0.41067]
[1729906672767,0.4173,2438.8,2438.4,3.61848]
[1729906673268,0.4173,2438.8,2438.5,0.41067]
[1729906673570,0.4173,2438.8,2438.4,3.61849]
[1729906674772,0.4173,2438.8,2438.4,3.2078]
[1729906674969,0.82794,2438.8,2438.3,0.41071]
[1729906675173,0.4173,2438.8,2438.7,0.41064]
[1729906675466,0.422,2438.9,2438.6,0.41066]
[1729906675868,0.422,2438.9,2438.6,0.4302]
[1729906676059,0.4418,2439.1,2438.8,3.2078]
[1729906676266,0.4418,2439.1,2438.8,3.61841]
[1729906676474,0.4418,2439.1,2439.0,0.41059]
[1729906676669,0.4418,2439.1,2438.8,3.2078]
[1729906676867,0.4418,2439.1,2438.9,0.41061]
[1729906678063,0.4418,2439.1,2438.8,3.2078]
[1729906678273,0.4418,2439.1,2438.8,4.28172101]
[1729906678461,0.4418,2439.1,2438.9,0.4106]
[1729906681180,0.859,2439.5,2438.9,2.88203555]
[1729906681377,1.2744,2439.5,2439.2,0.41056]
[1729906681568,0.96,2439.8,2439.2,2.88203555]
[1729906681777,0.96,2439.8,2439.1,3.2078]
[1729906681778,0.4154,2439.7,2439.5,0.4105]
[1729906682085,0.4154,2439.7,2439.4,6.08983555]
[1729906682086,0.8823,2439.9,2439.6,0.416]
[1729906682279,0.4154,2439.8,2439.6,0.416]
[1729906683669,0.4154,2439.8,2439.6,3.29803555]
[1729906683876,0.4154,2439.8,2439.7,0.41048]
[1729906684374,3.2078,2440.0,2439.9,0.41044]
[1729906684678,3.2078,2440.0,2439.8,3.30683555]
[1729906684877,1.3297,2440.4,2439.9,0.41043]
[1729906685378,1.3297,2440.4,2440.0,0.41041]
[1729906685575,1.74007,2440.4,2440.0,2.88203555]
[1729906685780,1.74007,2440.4,2439.8,3.71728555]
[1729906685983,1.3297,2440.4,2439.9,0.41043]
[1729906686175,3.2078,2440.6,2440.1,0.41041]
[1729906686379,3.2078,2440.6,2440.0,6.08983555]
[1729906686380,0.415,2440.5,2440.0,6.08983555]
[1729906686581,0.8642,2440.5,2440.2,0.41039]
[1729906686780,0.8642,2440.5,2440.3,0.41037]
[1729906687083,0.41028,2440.9,2440.0,3.2078]
[1729906687084,0.41028,2440.9,2440.4,3.29239555]
[1729906687279,0.415,2440.8,2440.4,2.88203555]
[1729906688081,0.415,2440.8,2440.4,3.33063555]
[1729906688284,0.415,2440.8,2440.6,2.88203555]
[1729906688778,0.4098,2441.0,2440.6,2.88203555]
[1729906688779,0.4098,2441.0,2440.7,0.4103]
[1729906688979,0.4098,2441.0,2440.6,6.50015555]
[1729906691177,0.82007,2441.0,2440.6,3.2078]
[1729906691375,0.4098,2441.0,2440.6,6.08983555]
[1729906691581,3.2078,2441.1,2440.8,2.88203555]
[1729906692180,0.4462,2441.3,2441.0,3.29229555]
[1729906692375,0.4492,2441.4,2441.0,3.29229555]
[1729906692578,0.4492,2441.4,2441.2,2.88203555]
[1729906693382,0.4383,2441.5,2441.2,2.88203555]
[1729906694379,0.4383,2441.5,2441.1,0.4251]
[1729906694980,0.4102,2441.4,2440.9,3.2078]
[1729906695491,0.4383,2441.5,2440.9,3.2078]
[1729906695688,0.4102,2441.4,2440.9,3.2078]
[1729906696886,0.84848,2441.5,2440.9,3.2078]
[1729906697980,0.84848,2441.5,2440.8,3.29231555]
[1729906698290,0.84848,2441.5,2440.8,6.50011555]
[1729906698485,0.41021,2441.4,2440.8,6.08983555]
[1729906698997,0.4383,2441.5,2440.8,6.08983555]
[1729906699291,0.84849,2441.5,2440.9,0.41027]
[1729906699882,0.84849,2441.5,2440.8,6.50011555]
[1729906700289,0.4383,2441.5,2440.8,6.08983555]
[1729906700488,3.2078,2441.4,2440.6,0.4441]
[1729906700687,0.41025,2441.1,2440.6,0.4441]
[1729906700882,1.70526,2441.0,2440.6,0.4441]
[1729906701088,0.4103,2440.8,2440.3,3.2078]
[1729906701592,0.41031,2440.7,2440.3,3.2078]
[1729906701982,0.4103,2440.8,2440.3,3.2078]
[1729906702180,0.41028,2440.9,2440.3,3.2078]
[1729906702390,0.4103,2440.8,2440.3,3.2078]
[1729906702887,3.2078,2441.7,2441.1,0.41023]
[1729906703091,0.4157,2441.6,2441.1,6.08983555]
[1729906703389,0.82587,2441.6,2441.1,3.2078]
[1729906703793,0.4157,2441.6,2441.1,3.2078]
[1729906704397,0.82587,2441.6,2441.1,3.2078]
[1729906705086,4.096,2441.5,2440.8,4.0839]
[1729906705291,3.618,2441.4,2440.8,4.04949]
[1729906705491,0.4365,2441.3,2440.8,4.04949]
[1729906705692,0.4142,2441.2,2440.8,3.6392]
[1729906705990,0.8579,2441.2,2440.8,3.6392]
[1729906707198,0.65240795,2441.2,2440.8,3.6392]
[1729906707989,0.24218795,2441.2,2440.8,3.6392]
[1729906708591,0.65240795,2441.2,2440.8,4.0555]
[1729906708987,0.24218795,2441.2,2440.8,4.46579]
[1729906710088,0.41027,2441.0,2440.5,6.50016555]
[1729906710298,0.41027,2441.0,2440.5,2.88203555]
[1729906710595,0.4174,2440.9,2440.5,2.88203555]
[1729906710995,0.45,2440.8,2440.5,2.88203555]
[1729906711598,0.45,2440.8,2440.3,2.88203555]
[1729906711896,0.4494,2440.7,2440.3,2.88203555]
[1729906712584,0.85971,2440.7,2440.3,2.88203555]
[1729906712997,0.4494,2440.7,2440.3,2.88203555]
[1729906713188,0.85971,2440.7,2440.3,2.88203555]
[1729906713393,0.4494,2440.7,2440.3,2.88203555]
[1729906713896,0.4494,2440.7,2440.2,4.46599]
[1729906713897,0.45,2440.8,2440.5,2.88203555]
[1729906714194,0.45,2440.8,2440.7,0.41031]
[1729906714703,0.45,2440.8,2440.7,0.86181]
[1729906714995,3.2078,2441.1,2440.7,3.74384555]
[1729906715185,0.4478,2441.2,2440.8,0.41028]
[1729906715691,0.4478,2441.2,2440.7,6.54133555]
[1729906715990,0.4478,2441.2,2440.8,0.41029]
[1729906716195,0.4478,2441.2,2440.5,2.88203555]
[1729906716395,0.85803,2441.2,2440.8,0.4176]
[1729906716593,0.41024,2441.1,2440.8,0.4176]
[1729906717804,0.85803,2441.2,2440.8,0.4176]
[1729906717995,0.4478,2441.2,2440.8,0.4176]
[1729906718305,0.41021,2441.3,2440.8,3.70991555]
[1729906718489,0.41021,2441.3,2440.9,0.4516]
[1729906718688,3.2078,2441.4,2440.9,0.4516]
[1729906718897,3.618,2441.4,2440.9,0.86186]
[1729906719593,3.2078,2441.4,2440.9,0.4516]
[1729906720288,3.2078,2441.7,2440.9,3.6594]
[1729906720488,3.2078,2441.7,2441.3,0.4102]
[1729906720694,3.2078,2441.7,2441.4,0.8305]
[1729906721190,3.2078,2441.7,2441.5,3.29220555]
[1729906721390,0.957,2442.0,2441.6,0.41016]
[1729906721587,1.3671,2442.0,2441.5,3.29219555]
[1729906723095,0.41019,2441.5,2441.0,3.2078]
[1729906723293,0.41021,2441.3,2441.0,0.8495]
[1729906723495,1.2828,2441.4,2441.0,0.8495]
[1729906723699,0.8726,2441.4,2441.0,3.73153555]
[1729906723996,0.8726,2441.4,2441.0,4.14178555]
[1729906724197,4.04955,2441.7,2441.1,0.41024]
[1729906724387,0.41016,2441.6,2441.0,3.73153555]
[1729906724593,0.41016,2441.6,2441.0,4.14179555]
[1729906726103,0.41019,2441.4,2441.0,3.73153555]
[1729906728302,3.6394,2441.7,2441.0,3.73153555]
[1729906728600,0.41019,2441.4,2441.0,3.73153555]
[1729906728801,0.41018,2441.5,2441.0,3.73153555]
[1729906729397,3.6394,2441.7,2441.0,3.73153555]
[1729906729398,0.4102,2441.4,2441.0,3.73153555]
[1729906730403,0.4102,2441.4,2441.0,4.80545656]
[1729906731302,0.41018,2441.5,2441.0,4.80545656]
[1729906732102,3.6394,2441.7,2441.0,4.80545656]
[1729906732300,0.41017,2441.6,2441.0,5.21570656]
[1729906732603,4.04955,2441.7,2441.2,3.95595656]
[1729906733392,3.2078,2441.7,2441.4,2.88203555]
[1729906733603,3.61795,2441.7,2441.5,0.4423]
[1729906733802,0.41016,2441.6,2441.5,0.4423]
[1729906734002,3.61795,2441.7,2441.5,0.4423]
[1729906734704,0.41016,2441.6,2441.5,0.4423]
[1729906734998,3.61795,2441.7,2441.5,0.4423]
[1729906735203,0.41016,2441.6,2441.5,0.4423]
[1729906735403,3.61795,2441.7,2441.5,0.4423]
[1729906735802,0.41016,2441.6,2441.5,0.4423]
[1729906736105,0.41016,2441.6,2441.1,4.81868152]
[1729906736106,0.41016,2441.6,2441.1,3.2078]
[1729906736295,0.41016,2441.6,2441.3,0.883]
[1729906737109,0.41018,2441.5,2441.3,0.883]
[1729906737511,0.41017,2441.6,2441.3,0.883]
[1729906737708,0.4105,2441.8,2441.3,0.883]
[1729906737709,0.41018,2441.5,2441.3,0.883]
[1729906738611,0.41016,2441.6,2441.3,0.883]
[1729906738801,0.86138,2441.5,2441.3,0.883]
[1729906739301,0.4512,2441.5,2441.3,0.883]
[1729906739698,0.4102,2441.4,2441.0,2.88203555]
[1729906739904,1.2757,2441.4,2441.0,3.72003555]
[1729906740104,0.41022,2441.3,2441.0,3.72003555]
[1729906740509,0.41023,2441.2,2441.0,0.838]
[1729906741003,0.8655,2441.4,2441.0,0.838]
[1729906741202,1.2757,2441.4,2441.0,0.838]
[1729906741712,0.8655,2441.4,2441.0,0.838]
[1729906742411,1.27569,2441.4,2441.0,0.838]
[1729906743116,0.8655,2441.4,2441.0,3.72003555]
[1729906743302,0.86138,2441.5,2441.0,4.13029555]
[1729906743903,0.86138,2441.5,2441.0,3.72003555]
[1729906744615,3.61796,2441.6,2441.1,0.41023]
[1729906744815,3.2078,2441.6,2441.2,2.88203555]
[1729906745214,3.2078,2441.6,2441.3,0.41021]
[1729906745510,3.2078,2441.6,2441.2,2.88203555]
[1729906745511,1.3259,2441.8,2441.4,0.41019]
[1729906745711,1.3259,2441.8,2441.5,0.8559]
[1729906746614,3.61788,2442.1,2441.6,2.88203555]
[1729906746804,3.61788,2442.1,2441.9,2.88203555]
[1729906747010,3.61788,2442.1,2441.7,2.88203555]
[1729906747812,3.2078,2442.1,2441.7,3.29217555]
[1729906748010,3.2078,2442.1,2441.7,2.88203555]
[1729906748215,3.2078,2442.1,2441.9,2.88203555]
[1729906748510,3.2078,2442.1,2442.0,0.8878]
[1729906750706,3.2078,2442.1,2441.9,2.88203555]
[1729906750707,0.4101,2442.0,2441.7,3.2078]
[1729906750907,3.2078,2442.1,2441.6,3.72233555]
[1729906751121,0.41009,2442.0,2441.6,3.72233555]
[1729906751712,3.61788,2442.1,2441.6,3.72233555]
[1729906753215,3.2078,2442.1,2441.6,3.72233555]
[1729906754015,0.4101,2442.0,2441.6,3.72233555]
[1729906754412,0.41013,2441.8,2441.6,0.8403]
[1729906754608,0.4276,2441.9,2441.6,0.8403]
[1729906754811,0.83771,2441.9,2441.6,0.8403]
[1729906755110,0.41014,2441.7,2441.4,2.88203555]
[1729906755315,0.85333,2441.8,2441.4,3.76633555]
[1729906755612,0.4216,2441.7,2441.4,3.76633555]
[1729906756922,0.4216,2441.7,2441.4,6.97413555]
[1729906757505,0.4216,2441.7,2441.4,3.76633555]
[1729906760113,0.83175,2441.7,2441.4,3.76633555]
[1729906760413,0.4216,2441.7,2441.4,3.76633555]
[1729906761918,0.4216,2441.7,2441.4,4.17652555]
[1729906762313,0.4432,2441.8,2441.4,3.76633555]
[1729906762514,0.4276,2441.9,2441.6,2.88203555]
[1729906763711,3.2078,2442.1,2441.4,4.5026]
[1729906763911,3.2078,2442.1,2441.8,2.88203555]
[1729906764112,1.3142,2442.3,2441.9,0.8773]
[1729906765113,0.41002,2442.5,2442.0,0.41009]
[1729906765319,0.41003,2442.4,2441.9,0.8773]
[1729906765515,1.69631,2442.5,2442.0,0.41009]
[1729906765713,0.41003,2442.4,2441.9,0.8773]
[1729906766112,1.69631,2442.5,2441.9,1.2874]
[1729906766314,1.2863,2442.5,2442.0,2.88203555]
[1729906766535,0.8355,2442.5,2442.0,3.29211555]
[1729906766718,0.8355,2442.5,2442.1,0.4105]
[1729906766918,3.2078,2442.6,2442.3,2.88203555]
[1729906767220,3.2078,2442.6,2442.1,0.4105]
[1729906767221,3.2078,2442.6,2442.5,2.88203555]
[1729906768320,3.2078,2442.6,2442.4,0.8671]
[1729906769121,3.2078,2442.6,2442.5,2.88203555]
[1729906769429,0.84,2442.8,2442.5,2.88203555]
[1729906769926,1.24997,2442.8,2442.5,2.88203555]
[1729906770328,0.84,2442.8,2442.5,2.88203555]
[1729906770526,0.86075,2442.9,2442.5,2.88203555]
[1729906771627,0.40998,2442.7,2442.5,2.88203555]
[1729906772321,0.40998,2442.7,2442.4,0.8671]
[1729906772522,0.8442,2442.6,2442.4,0.8671]
[1729906772921,0.40996,2442.8,2442.5,2.88203555]
[1729906773229,0.4303,2442.7,2442.5,2.88203555]
[1729906773425,0.84028,2442.7,2442.5,2.88203555]
[1729906773620,0.4303,2442.7,2442.5,2.88203555]
[1729906774622,0.84028,2442.7,2442.5,2.88203555]
[1729906775930,0.4303,2442.7,2442.5,2.88203555]
[1729906776130,0.82386,2442.8,2442.5,2.88203555]
[1729906776731,0.4139,2442.8,2442.5,2.88203555]
[1729906777026,0.40994,2442.9,2442.7,2.88203555]
[1729906779327,0.8715,2443.0,2442.7,2.88203555]
[1729906779524,0.40997,2442.8,2442.5,2.88203555]
[1729906781223,0.40994,2442.9,2442.5,2.88203555]
[1729906781421,0.40997,2442.8,2442.5,2.88203555]
[1729906782137,0.40994,2442.9,2442.5,2.88203555]
[1729906783528,1.28143,2443.0,2442.5,2.88203555]
[1729906783935,0.8715,2443.0,2442.5,2.88203555]
[1729906784135,0.40994,2442.9,2442.5,2.88203555]
[1729906784637,0.8715,2443.0,2442.5,2.88203555]
[1729906784941,0.40996,2442.8,2442.5,2.88203555]
[1729906786043,0.8715,2443.0,2442.5,6.08983555]
[1729906786246,0.40997,2442.7,2442.5,6.08983555]
[1729906786637,0.40996,2442.8,2442.5,6.08983555]
[1729906787044,0.40997,2442.7,2442.5,6.08983555]
[1729906787343,0.40997,2442.7,2442.5,3.2078]
[1729906787544,0.4529,2442.6,2442.5,3.2078]
[1729906787940,0.4529,2442.6,2442.4,0.8671]
[1729906789239,0.8629,2442.6,2442.4,0.4212]
[1729906789439,0.4145,2442.5,2442.2,3.32913555]
[1729906790538,0.82451,2442.5,2442.2,3.32913555]
[1729906790749,0.41002,2442.4,2442.2,3.32913555]
[1729906791043,0.82451,2442.5,2442.2,3.32913555]
[1729906791941,0.4145,2442.5,2442.2,3.32913555]
[1729906792245,1.3066,2442.6,2442.2,3.32913555]
[1729906792647,0.41,2442.6,2442.2,3.32913555]
[1729906793946,0.4382,2442.7,2442.2,3.32913555]
[1729906794154,0.41003,2442.4,2442.2,3.32913555]
[1729906794647,0.41002,2442.5,2442.2,3.32913555]
[1729906796644,0.4473,2442.6,2442.2,3.32913555]
[1729906796945,0.41001,2442.5,2442.2,3.32913555]
[1729906798142,0.4473,2442.6,2442.2,3.32913555]
[1729906798549,0.41001,2442.5,2442.2,3.32913555]
[1729906800749,0.4473,2442.6,2442.2,3.32913555]
[1729906801050,0.41003,2442.4,2442.2,3.32913555]
[1729906802242,0.41006,2442.2,2442.1,0.4257]
[1729906802443,0.41009,2442.0,2441.9,0.4491]
[1729906802644,0.8695,2442.1,2441.8,2.88203555]
[1729906802846,0.84798,2442.1,2441.8,2.88203555]
[1729906803046,0.84798,2442.1,2441.9,3.2078]
[1729906803547,0.4379,2442.1,2442.0,3.33113555]
[1729906803845,0.4316,2442.4,2442.0,3.33113555]
[1729906804054,0.41002,2442.5,2442.2,2.88203555]
[1729906804343,0.41,2442.6,2442.2,2.88203555]
[1729906805152,0.41002,2442.4,2442.2,2.88203555]
[1729906805454,0.41001,2442.5,2442.2,2.88203555]
[1729906805948,0.41003,2442.4,2442.2,2.88203555]
[1729906806143,0.41003,2442.4,2442.1,0.4341]
[1729906806144,3.2078,2442.6,2442.0,0.4491]
[1729906806349,0.41007,2442.1,2442.0,0.4491]
[1729906807038,0.41007,2442.1,2441.8,0.4341]
[1729906807039,0.41011,2441.9,2441.8,0.4341]
[1729906807242,0.4101,2442.0,2441.8,0.4341]
[1729906807554,0.41011,2441.9,2441.8,0.4341]
[1729906810048,3.6273,2442.2,2441.8,0.4341]
[1729906810356,0.41011,2441.9,2441.8,0.4341]
[1729906811654,0.4101,2442.0,2441.8,0.4341]
[1729906811852,3.6273,2442.2,2441.8,0.4341]
[1729906811853,0.41011,2441.9,2441.8,0.4341]
[1729906812045,0.41011,2441.9,2441.7,0.4497]
[1729906812245,0.4108,2441.8,2441.7,0.4497]
[1729906816954,0.827,2441.8,2441.7,0.4497]
[1729906819857,1.23712,2441.8,2441.7,0.4497]
[1729906820158,0.827,2441.8,2441.7,0.4497]
[1729906820553,1.23712,2441.8,2441.7,0.4497]
[1729906820756,0.827,2441.8,2441.7,0.4497]
[1729906822355,0.827,2441.8,2441.7,1.77934382]
[1729906822847,6.25184382,2441.8,2441.3,1.07352095]
[1729906823044,6.25184382,2441.8,2441.4,1.32964382]
[1729906823045,0.41017,2441.5,2441.4,1.32964382]
[1729906826353,0.41017,2441.5,2441.2,2.88163524]
[1729906826570,0.4116,2441.4,2441.2,2.88163524]
[1729906826955,0.8218,2441.4,2441.2,2.88163524]
[1729906827566,0.41026,2441.0,2440.9,3.2078]
[1729906827854,0.41031,2440.7,2440.6,0.4492]
[1729906828049,1.2616,2440.9,2440.4,3.32843524]
[1729906828253,0.4103,2440.8,2440.4,3.75903524]
[1729906828455,1.2616,2440.9,2440.4,3.75903524]
[1729906828652,0.41032,2440.7,2440.4,3.75903524]
[1729906828851,1.2616,2440.9,2440.4,3.75903524]
[1729906829159,0.4103,2440.8,2440.4,3.75903524]
[1729906829564,1.2616,2440.9,2440.4,3.75903524]
[1729906829855,0.41035,2440.5,2440.1,3.76513524]
[1729906830050,0.4533,2440.4,2440.1,3.76513524]
[1729906833362,0.896,2440.4,2440.1,3.76513524]
[1729906835552,0.41039,2440.2,2439.9,2.88163524]
[1729906836053,0.4212,2440.1,2439.9,2.88163524]
[1729906836250,0.4212,2440.1,2439.7,2.88163524]
[1729906836449,0.438,2440.0,2439.7,2.88163524]
[1729906836651,0.438,2440.0,2439.6,4.0425]
[1729906837755,0.4324,2439.9,2439.1,3.61837]
[1729906837954,0.41047,2439.8,2439.1,4.46857]
[1729906838461,0.4414,2439.7,2439.1,4.46857]
[1729906839060,0.4105,2439.6,2439.1,4.058]
[1729906839256,0.4218,2439.5,2439.1,4.058]
[1729906840462,0.4218,2439.5,2439.1,1.26078]
[1729906841368,0.4414,2439.7,2439.1,1.26078]
[1729906841661,0.4414,2439.7,2439.1,1.67178]
[1729906841862,0.85188,2439.7,2439.1,1.67178]
[1729906842062,0.4414,2439.7,2439.1,1.67178]
[1729906842265,0.4414,2439.7,2439.1,4.87958]
[1729906842454,0.4393,2439.8,2439.3,3.29217524]
[1729906842660,0.4393,2439.8,2439.4,0.41052]
[1729906843158,3.2078,2440.1,2439.5,3.72763524]
[1729906843359,3.2078,2440.1,2439.6,0.4312]
[1729906843360,3.61821,2440.1,2439.6,0.4312]
[1729906843560,4.50911,2440.1,2439.6,0.4312]
[1729906843963,4.0987,2440.1,2439.6,0.4312]
[1729906844162,4.0987,2440.1,2439.7,0.41048]
[1729906845155,4.0987,2440.1,2439.6,0.4312]
[1729906845364,0.41047,2439.8,2439.5,0.4355]
[1729906845555,0.41044,2440.0,2439.5,0.8667]
[1729906846062,4.50911,2440.1,2439.5,1.2772]
[1729906846264,4.50911,2440.1,2439.5,0.8667]
[1729906846461,4.50911,2440.1,2439.5,1.27721]
[1729906846664,4.0987,2440.1,2439.6,0.41048]
[1729906846865,3.2078,2440.1,2439.7,3.29210524]
[1729906847064,3.63,2440.4,2440.0,3.2078]
[1729906847264,0.953,2440.5,2440.1,4.17604524]
[1729906847464,0.41032,2440.7,2440.1,4.17604524]
[1729906847964,0.41032,2440.7,2440.1,3.76563524]
[1729906848470,0.41031,2440.7,2440.1,3.76563524]
[1729906849471,0.4184,2440.6,2440.1,3.76563524]
[1729906849669,0.82873,2440.6,2440.1,3.76563524]
[1729906850172,3.6262,2440.6,2440.1,0.884]
[1729906850364,4.03653,2440.6,2440.1,0.884]
[1729906851164,0.4274,2440.5,2440.1,0.884]
[1729906851978,0.4274,2440.5,2440.1,1.29441]
[1729906852165,0.4184,2440.6,2440.2,0.41038]